bitfinex-derivatives/quotes_SOLF0:USTF0_20260217
["timestamp","ask_amount","ask_price","bid_price","bid_amount"]
[1771334989197,8.57761911,84.947,84.907,14.67826644]
[1771334989502,8.57761911,84.946,84.908,74.14]
[1771334989701,8.57761911,84.945,84.908,74.14]
[1771334989902,14.22763358,84.946,84.908,74.14]
[1771334990694,10.6011,84.944,84.908,88.81826644]
[1771334990895,10.6011,84.944,84.909,14.67826644]
[1771334992806,10.6011,84.944,84.908,88.78]
[1771334992807,14.22763358,84.946,84.913,15.42067036]
[1771334993007,10.6,84.953,84.913,15.42067036]
[1771334994305,10.6,84.953,84.914,88.86]
[1771334995008,10.6,84.953,84.914,104.28067036]
[1771334997408,14.84045265,84.97,84.921,15.42067036]
[1771334997612,14.84045265,84.959,84.91,17.41936234]
[1771334997813,14.84045265,84.959,84.912,15.42067036]
[1771334998814,10.5996,84.956,84.914,15.42067036]
[1771335000210,10.6002,84.951,84.914,15.42067036]
[1771335000911,14.84045265,84.979,84.92,17.41936234]
[1771335001109,14.84045265,84.969,84.92,17.41936234]
[1771335001311,14.84045265,84.969,84.92,15.42067036]
[1771335001716,14.84045265,84.967,84.92,15.42067036]
[1771335001916,1.99869198,84.97,84.92,15.42067036]
[1771335001917,14.84045265,84.954,84.92,15.42067036]
[1771335002308,10.6001,84.951,84.913,89.1]
[1771335002510,14.84045265,84.95,84.914,89.3]
[1771335002915,14.84045265,84.95,84.915,15.42067036]
[1771335005014,14.84045265,84.95,84.91,1.99869198]
[1771335005015,14.84045265,84.95,84.913,89.46]
[1771335005614,14.84045265,84.95,84.913,104.88067036]
[1771335005816,10.6005,84.949,84.913,104.88067036]
[1771335006116,10.6005,84.949,84.913,15.42067036]
[1771335006314,10.6005,84.949,84.913,104.94067036]
[1771335006519,10.6005,84.949,84.913,15.42067036]
[1771335006713,10.6005,84.949,84.865,46.94]
[1771335006714,14.84045265,84.937,84.901,82.84]
[1771335007715,10.602,84.936,84.901,98.26067036]
[1771335008517,10.602,84.936,84.902,15.42067036]
[1771335011217,10.6012,84.943,84.902,15.42067036]
[1771335011726,14.84045265,84.949,84.903,105.22067036]
[1771335012121,14.84045265,84.949,84.91,17.41936234]
[1771335012424,14.84045265,84.939,84.899,89.84]
[1771335012926,14.84045265,84.929,84.899,89.84]
[1771335013426,14.84045265,84.929,84.88,1.99869198]
[1771335013622,14.84045265,84.929,84.881,89.88]
[1771335013833,25.44355265,84.928,84.884,10.6084]
[1771335014430,25.44355265,84.928,84.887,10.608]
[1771335014629,25.44355265,84.928,84.89,1.99869198]
[1771335015726,14.08989687,84.927,84.887,10.608]
[1771335015922,10.6034,84.925,84.885,10.93858335]
[1771335016123,14.08989687,84.924,84.885,10.93858335]
[1771335016526,14.08989687,84.922,84.88,12.60759198]
[1771335016725,14.08989687,84.922,84.884,21.60743291]
[1771335017330,10.6041,84.92,84.884,10.99893291]
[1771335017535,10.6041,84.92,84.885,90.06]
[1771335018125,10.6041,84.92,84.884,10.99893291]
[1771335018324,14.08989687,84.909,84.86,1.99869198]
[1771335019134,10.607,84.896,84.86,10.83927595]
[1771335019928,16.08858885,84.9,84.86,10.83927595]
[1771335020527,10.6068,84.898,84.86,10.83927595]
[1771335020728,14.08989687,84.897,84.86,10.83927595]
[1771335020931,14.08989687,84.897,84.86,12.83796793]
[1771335021129,2.94452184,84.933,84.859,90.1]
[1771335021130,14.08989687,84.923,84.879,11.2848769]
[1771335021641,14.08989687,84.919,84.88,74.14]
[1771335021937,14.08989687,84.908,84.868,86.54]
[1771335022340,14.08989687,84.908,84.867,90.18]
[1771335022836,10.6066,84.9,84.867,90.18]
[1771335024025,10.6066,84.9,84.86,13.2856541]
[1771335024230,10.6066,84.9,84.861,101.8820027]
[1771335024735,14.08989687,84.899,84.85,1.99869198]
[1771335024933,14.08989687,84.899,84.852,11.60370046]
[1771335025328,14.08989687,84.899,84.852,11.33238151]
[1771335025529,14.08989687,84.899,84.852,11.11381549]
[1771335026034,16.08875426,84.91,84.86,1.99885739]
[1771335027329,16.08875426,84.91,84.861,90.38]
[1771335027535,16.08875426,84.91,84.862,11.10446355]
[1771335027736,10.6054,84.909,84.864,10.6109]
[1771335027930,10.6054,84.909,84.865,11.10446355]
[1771335029836,10.6054,84.909,84.867,11.06529849]
[1771335030036,10.6054,84.909,84.871,11.24958936]
[1771335031741,14.08989687,84.895,84.87,90.62]
[1771335032336,10.6073,84.894,84.87,90.62]
[1771335032539,14.08989687,84.895,84.87,90.62]
[1771335033932,14.08989687,84.909,84.87,90.62]
[1771335034641,14.08989687,84.909,84.871,90.8]
[1771335035138,10.6044,84.917,84.88,1.99885739]
[1771335035336,14.08989687,84.929,84.873,11.54781606]
[1771335035536,14.08989687,84.919,84.873,11.54781606]
[1771335036450,14.08989687,84.919,84.875,11.45384689]
[1771335036636,14.08989687,84.919,84.876,90.9]
[1771335036836,14.08989687,84.919,84.876,102.3558671]
[1771335037237,10.6051,84.912,84.876,102.3558671]
[1771335038737,10.6051,84.912,84.877,11.60260326]
[1771335039437,10.6051,84.912,84.878,91.06]
[1771335043352,10.6051,84.912,84.879,11.72799366]
[1771335045444,10.6051,84.912,84.88,91.42]
[1771335046244,14.08989687,84.919,84.881,91.46]
[1771335047743,10.605,84.913,84.881,91.46]
[1771335049044,14.54775178,84.906,84.881,91.46]
[1771335051150,10.6056,84.907,84.881,91.46]
[1771335051348,10.6056,84.907,84.882,91.76]
[1771335051949,14.48233585,84.907,84.882,73.9003]
[1771335053747,25.08793585,84.907,84.882,73.9003]
[1771335055350,10.6056,84.907,84.882,73.9003]
[1771335056842,21.2001,84.952,84.836,10.50724676]
[1771335056843,14.48233585,84.899,84.836,10.50724676]
[1771335057057,16.48119324,84.89,84.841,10.50724676]
[1771335057256,14.48233585,84.89,84.841,10.50724676]
[1771335057442,1.99885739,84.9,84.851,10.5088726]
[1771335058755,10.608,84.889,84.852,10.60637597]
[1771335059657,16.48119324,84.91,84.861,10.607707]
[1771335059860,23.0310006,84.909,84.861,10.607707]
[1771335060154,14.48233585,84.909,84.861,10.607707]
[1771335060353,10.93698552,84.934,84.837,92.02]
[1771335060354,1.99885739,84.92,84.871,10.60861467]
[1771335060556,14.48233585,84.921,84.87,1.99885739]
[1771335060557,8.55153848,84.919,84.873,10.60861467]
[1771335060754,14.48233585,84.921,84.873,10.60861467]
[1771335061057,1.99885739,84.93,84.89,12.60721636]
[1771335061366,14.48233585,84.933,84.892,10.60835897]
[1771335061654,8.55393725,84.932,84.892,10.60835897]
[1771335061859,10.6034,84.925,84.892,10.60835897]
[1771335063560,25.08493585,84.932,84.892,10.60835897]
[1771335063757,22.9959135,84.931,84.893,92.06]
[1771335064061,8.51357765,84.93,84.893,92.06]
[1771335064259,8.51357765,84.929,84.893,92.06]
[1771335064457,14.48233585,84.931,84.893,92.06]
[1771335064659,8.51334511,84.93,84.893,92.06]
[1771335064957,8.51334511,84.929,84.893,92.06]
[1771335065159,14.48233585,84.931,84.893,92.06]
[1771335065361,8.51334015,84.93,84.893,92.06]
[1771335065560,8.51334015,84.929,84.893,92.06]
[1771335065757,14.48233585,84.931,84.895,10.6071]
[1771335065963,14.48233585,84.943,84.897,10.71709901]
[1771335066256,8.51586143,84.942,84.901,10.71709901]
[1771335066457,8.51586143,84.941,84.903,10.71846963]
[1771335066661,10.6017,84.939,84.903,10.71846963]
[1771335066962,8.51367688,84.938,84.903,10.71846963]
[1771335067163,8.51367688,84.938,84.902,92.2]
[1771335067164,16.48119324,84.93,84.902,92.2]
[1771335067455,16.48119324,84.93,84.89,92.22]
[1771335067456,14.48233585,84.928,84.89,92.22]
[1771335068058,14.48233585,84.928,84.853,21.90285629]
[1771335068059,14.48233585,84.916,84.87,1.99885739]
[1771335068364,1.99885739,84.89,84.855,10.77668318]
[1771335068559,1.99885739,84.89,84.856,80.46]
[1771335068759,16.48119324,84.89,84.856,80.46]
[1771335068963,17.42802274,84.916,84.861,10.77786803]
[1771335069257,16.48119324,84.91,84.861,10.77786803]
[1771335069463,14.48233585,84.899,84.857,74.14]
[1771335069650,14.48233585,84.899,84.858,10.77930393]
[1771335070054,14.48233585,84.899,84.86,1.99885739]
[1771335070249,14.48233585,84.911,84.861,10.80830443]
[1771335070458,10.607,84.897,84.862,92.32]
[1771335070661,10.607,84.897,84.862,103.1297297]
[1771335071053,10.607,84.897,84.863,10.80947212]
[1771335072555,10.6081,84.888,84.863,10.80947212]
[1771335072765,1.99885739,84.87,84.822,10.85819165]
[1771335072960,14.48233585,84.868,84.823,74.14]
[1771335073267,8.50891471,84.867,84.823,74.14]
[1771335073467,14.48233585,84.868,84.823,74.14]
[1771335073966,8.49610721,84.867,84.823,74.14]
[1771335074166,14.48233585,84.868,84.823,74.14]
[1771335074767,10.6109,84.865,84.823,74.14]
[1771335075870,10.6109,84.865,84.824,92.52]
[1771335076559,25.81605602,84.865,84.824,92.52]
[1771335077264,15.20515602,84.859,84.81,1.99885739]
[1771335077468,200.3107,84.916,84.751,21.2503]
[1771335077469,1.99885739,84.84,84.79,1.99885739]
[1771335077767,15.20515602,84.849,84.801,10.78589761]
[1771335078763,10.6133,84.846,84.801,10.78589761]
[1771335079463,10.6133,84.846,84.802,103.50362191]
[1771335079659,10.6133,84.846,84.803,10.84362191]
[1771335079856,10.6138,84.842,84.803,10.84362191]
[1771335080371,1.99885739,84.84,84.803,10.84362191]
[1771335081167,15.20515602,84.842,84.803,10.84362191]
[1771335081365,12.61165739,84.85,84.803,10.84362191]
[1771335081576,1.99885739,84.85,84.803,10.84362191]
[1771335081868,17.20401341,84.85,84.803,10.84362191]
[1771335082470,17.20401341,84.85,84.802,92.66]
[1771335082471,15.20515602,84.85,84.81,12.66799308]
[1771335082677,10.6132,84.847,84.811,10.66913569]
[1771335082868,10.6132,84.847,84.812,10.66913569]
[1771335083681,10.6138,84.842,84.8,12.66924553]
[1771335085682,15.20515602,84.834,84.797,92.88]
[1771335086082,15.20515602,84.834,84.791,103.62061564]
[1771335086380,15.20515602,84.834,84.792,10.72061564]
[1771335086679,10.6156,84.828,84.792,10.72061564]
[1771335086981,15.20515602,84.829,84.787,10.72160147]
[1771335088381,15.20515602,84.829,84.78,2.00178864]
[1771335088382,15.20515602,84.829,84.78,12.42264648]
[1771335088880,10.6165,84.821,84.78,12.42264648]
[1771335089079,15.20515602,84.829,84.781,10.42181162]
[1771335089588,15.20515602,84.829,84.782,103.5429396]
[1771335090090,15.20515602,84.829,84.783,10.29991972]
[1771335090292,15.20515602,84.829,84.791,10.29991972]
[1771335090594,15.20515602,84.829,84.781,10.30098712]
[1771335091883,21.2217,84.866,84.78,2.00178864]
[1771335091884,15.20515602,84.831,84.78,2.00178864]
[1771335092085,15.20515602,84.829,84.781,10.51196162]
[1771335092588,25.82065602,84.829,84.781,10.51196162]
[1771335092793,15.20515602,84.829,84.781,10.51196162]
[1771335093488,15.20515602,84.819,84.781,74.16]
[1771335093690,15.20515602,84.819,84.77,2.00178864]
[1771335094082,15.20515602,84.819,84.77,13.11673535]
[1771335094483,15.20515602,84.819,84.771,10.6226]
[1771335094691,15.20515602,84.819,84.772,11.11603465]
[1771335094888,15.20515602,84.819,84.78,2.00178864]
[1771335096297,15.20515602,84.819,84.772,11.11603465]
[1771335097690,2.00178864,84.82,84.772,11.11603465]
[1771335097691,15.20515602,84.817,84.772,11.11603465]
[1771335098691,25.82215602,84.816,84.772,11.11603465]
[1771335099498,15.20515602,84.815,84.772,11.11603465]
[1771335099795,25.82255602,84.813,84.772,11.11603465]
[1771335100787,15.20515602,84.813,84.78,2.00178864]
[1771335100989,10.6165,84.821,84.79,2.00178864]
[1771335101183,10.6165,84.821,84.78,13.42340531]
[1771335101389,10.6173,84.814,84.78,13.42340531]
[1771335102696,10.6181,84.808,84.78,13.42340531]
[1771335104202,10.6169,84.817,84.78,13.42340531]
[1771335104900,15.20515602,84.826,84.78,13.42340531]
[1771335104901,10.6176,84.811,84.78,13.42340531]
[1771335106701,14.4919846,84.815,84.77,2.00178864]
[1771335106903,14.4919846,84.815,84.771,94.02]
[1771335107201,25.1095846,84.812,84.77,12.62448864]
[1771335107402,25.1095846,84.812,84.771,94.04]
[1771335107700,14.4919846,84.799,84.758,94.04]
[1771335107891,14.4919846,84.799,84.756,94.06]
[1771335108090,2.00178864,84.8,84.75,2.00178864]
[1771335108091,14.4919846,84.796,84.751,10.6251]
[1771335108494,14.4919846,84.796,84.711,21.2602]
[1771335108495,14.4919846,84.766,84.723,10.6285]
[1771335108697,14.4919846,84.759,84.706,11.6680119]
[1771335108899,14.4919846,84.739,84.691,11.66790246]
[1771335109303,14.4919846,84.739,84.7,11.66790246]
[1771335109498,14.4919846,84.739,84.69,2.00178864]
[1771335109808,14.4919846,84.729,84.69,2.00178864]
[1771335110807,10.6283,84.726,84.69,2.00178864]
[1771335111299,10.6283,84.726,84.686,11.66870665]
[1771335111499,10.6283,84.726,84.69,2.00178864]
[1771335112199,14.78721564,84.723,84.681,94.16]
[1771335112395,14.78721564,84.719,84.67,2.00178864]
[1771335112905,14.78721564,84.719,84.68,2.00178864]
[1771335115011,14.78721564,84.709,84.662,19.31453253]
[1771335115207,14.78721564,84.709,84.67,2.00178864]
[1771335115407,25.41771564,84.709,84.67,2.00178864]
[1771335115603,14.78721564,84.709,84.68,2.00178864]
[1771335116203,14.78721564,84.709,84.67,2.00178864]
[1771335117415,14.78721564,84.709,84.663,11.68946562]
[1771335118907,14.78721564,84.709,84.67,2.00178864]
[1771335119110,14.78721564,84.709,84.663,11.68946562]
[1771335119313,14.78721564,84.709,84.67,2.00178864]
[1771335119507,14.78721564,84.709,84.662,19.31453253]
[1771335119508,14.78721564,84.727,84.671,14.2265358]
[1771335119712,16.78900428,84.74,84.69,16.22832444]
[1771335119914,14.78721564,84.74,84.69,16.22832444]
[1771335120114,14.78721564,84.74,84.7,2.00178864]
[1771335121209,14.78721564,84.754,84.71,2.00178864]
[1771335122617,14.78721564,84.754,84.72,2.00178864]
[1771335122812,14.78721564,84.769,84.72,2.00178864]
[1771335123119,14.78721564,84.769,84.72,16.46154396]
[1771335123615,10.8774273,84.831,84.671,21.2702]
[1771335123616,14.78721564,84.783,84.74,2.00178864]
[1771335123814,14.78721564,84.783,84.681,35.35]
[1771335123815,14.78721564,84.769,84.72,2.00178864]
[1771335124818,74.16,84.8,84.7,14.38611841]
[1771335124819,14.78721564,84.759,84.7,14.38611841]
[1771335125018,35.35,84.811,84.7,16.38790705]
[1771335125019,14.78721564,84.749,84.7,16.38790705]
[1771335125313,2.00178864,84.76,84.714,10.6297]
[1771335125515,14.78721564,84.763,84.72,2.00178864]
[1771335126115,14.78721564,84.763,84.73,2.00178864]
[1771335126421,14.78721564,84.763,84.72,14.65064181]
[1771335126422,14.78721564,84.763,84.72,16.65243045]
[1771335127815,14.78721564,84.763,84.721,10.6289]
[1771335129427,14.78721564,84.759,84.711,10.63]
[1771335130313,2.00178864,84.76,84.71,2.00178864]
[1771335130314,14.78721564,84.753,84.71,2.00178864]
[1771335130515,14.78721564,84.749,84.703,14.63595233]
[1771335130717,14.78721564,84.749,84.7,2.00178864]
[1771335131119,14.78721564,84.749,84.647,297.0]
[1771335131120,14.78721564,84.729,84.69,2.00178864]
[1771335132118,14.78721564,84.729,84.68,2.00178864]
[1771335133118,14.78721564,84.727,84.682,10.6337]
[1771335133316,14.78721564,84.727,84.68,2.00178864]
[1771335133816,14.78721564,84.719,84.67,2.00178864]
[1771335134424,14.78721564,84.719,84.672,10.635]
[1771335134625,14.78721564,84.719,84.67,2.00178864]
[1771335135323,14.76981539,84.713,84.67,2.00178864]
[1771335135924,14.76981539,84.713,84.671,10.6351]
[1771335136320,74.18,84.751,84.631,2.05478845]
[1771335136321,14.76981539,84.727,84.68,2.00178864]
[1771335137321,14.76981539,84.743,84.7,2.00178864]
[1771335138720,14.76981539,84.743,84.708,10.6305]
[1771335139219,74.18,84.785,84.71,2.00178864]
[1771335139220,14.76981539,84.756,84.71,2.00178864]
[1771335139917,14.76981539,84.753,84.71,2.00178864]
[1771335140116,14.76981539,84.739,84.69,2.00178864]
[1771335140318,14.76981539,84.739,84.698,10.6317]
[1771335143534,14.76981539,84.738,84.691,10.6326]
[1771335143832,14.76981539,84.738,84.705,10.6309]
[1771335146029,14.76981539,84.754,84.712,10.63]
[1771335146830,2.00625334,84.75,84.712,10.63]
[1771335147037,2.00625334,84.75,84.7,2.00625334]
[1771335147038,14.76981539,84.749,84.704,10.6309]
[1771335147926,14.76981539,84.748,84.701,14.43187848]
[1771335148128,14.76981539,84.748,84.71,2.00625334]
[1771335149125,14.76981539,84.748,84.716,10.6294]
[1771335152540,14.76981539,84.761,84.723,10.6285]
[1771335152739,14.76981539,84.775,84.721,14.43187848]
[1771335152940,10.6232,84.767,84.722,10.6288]
[1771335153239,14.76981539,84.766,84.722,10.6288]
[1771335154232,14.76981539,84.766,84.73,10.6277]
[1771335159134,14.76981539,84.766,84.73,12.63395334]
[1771335160032,14.76981539,84.766,84.73,2.00625334]
[1771335161235,14.76981539,84.766,84.731,10.6276]
[1771335165440,14.76981539,84.766,84.725,10.6284]
[1771335166141,14.76981539,84.766,84.73,10.6276]
[1771335166334,14.76981539,84.766,84.731,14.59166841]
[1771335168145,14.76981539,84.766,84.732,10.6275]
[1771335170537,15.2677077,84.778,84.74,16.59792175]
[1771335171737,15.2677077,84.778,84.746,10.6257]
[1771335172645,15.2677077,84.778,84.741,14.79370815]
[1771335173247,10.622,84.777,84.741,14.79370815]
[1771335175942,25.12885009,84.777,84.741,14.79370815]
[1771335177146,10.6211,84.784,84.743,14.79370815]
[1771335177351,14.50685009,84.783,84.743,14.79370815]
[1771335178350,14.50685009,84.779,84.743,14.79370815]
[1771335178847,14.50685009,84.779,84.73,2.00625334]
[1771335179050,14.50685009,84.769,84.731,14.79370815]
[1771335179855,14.50685009,84.769,84.72,2.00625334]
[1771335180248,14.50685009,84.769,84.72,16.79996149]
[1771335180648,14.50685009,84.766,84.731,10.6276]
[1771335182249,14.50685009,84.759,84.71,2.00625334]
[1771335182456,14.50685009,84.759,84.708,14.79370815]
[1771335182457,14.50685009,84.782,84.731,14.79370815]
[1771335182754,14.50685009,84.782,84.74,2.00625334]
[1771335183154,181.88805375,84.826,84.74,2.00625334]
[1771335183155,16.51310343,84.78,84.74,10.6265]
[1771335184856,14.50685009,84.794,84.751,14.79370815]
[1771335185060,181.88805375,84.826,84.751,14.79370815]
[1771335185061,14.50685009,84.806,84.751,14.79370815]
[1771335185361,14.50685009,84.806,84.76,2.00625334]
[1771335185557,14.50685009,84.806,84.764,10.6234]
[1771335187261,14.50685009,84.806,84.771,10.6226]
[1771335187654,14.50685009,84.821,84.78,16.79996149]
[1771335187856,181.88805375,84.826,84.792,10.62]
[1771335188954,14.50685009,84.835,84.792,10.62]
[1771335189151,14.50685009,84.832,84.784,10.6209]
[1771335189354,14.50685009,84.829,84.784,25.41460815]
[1771335189556,10.8774273,84.87,84.737,21.90285629]
[1771335189557,2.00625334,84.84,84.791,14.79370815]
[1771335189852,16.51310343,84.84,84.791,14.79370815]
[1771335190154,2.00625334,84.83,84.775,14.79370815]
[1771335190462,16.51310343,84.83,84.781,14.79370815]
[1771335191363,16.51310343,84.83,84.793,10.6198]
[1771335191364,14.50685009,84.83,84.793,10.6198]
[1771335191555,14.50685009,84.858,84.81,2.00625334]
[1771335191949,2.00625334,84.85,84.801,14.79370815]
[1771335192154,14.50685009,84.858,84.81,2.00625334]
[1771335192560,14.50685009,84.858,84.82,2.00625334]
[1771335193064,14.50685009,84.858,84.825,10.6158]
[1771335193967,14.50685009,84.871,84.831,14.79370815]
[1771335195062,14.50685009,84.871,84.834,10.6146]
[1771335196767,14.31709942,84.884,84.842,10.6137]
[1771335199471,14.31709942,84.884,84.84,2.00625334]
[1771335203069,14.31709942,84.882,84.84,2.00625334]
[1771335204673,10.609,84.881,84.84,2.00625334]
[1771335204873,24.92609942,84.881,84.84,2.00625334]
[1771335205076,14.31709942,84.88,84.84,2.00625334]
[1771335205575,14.31709942,84.869,84.824,10.6159]
[1771335208676,16.31728223,84.85,84.801,15.10659186]
[1771335209681,16.31728223,84.85,84.818,10.6166]
[1771335210485,16.31728223,84.85,84.807,10.6181]
[1771335210883,16.31728223,84.85,84.801,15.10659186]
[1771335211079,14.31709942,84.85,84.811,15.10659186]
[1771335211273,14.31709942,84.85,84.817,10.6168]
[1771335211473,14.31709942,84.85,84.811,15.10659186]
[1771335211884,24.92809942,84.864,84.82,27.72317467]
[1771335212488,14.31709942,84.863,84.82,27.72317467]
[1771335212681,14.31709942,84.863,84.83,10.6152]
[1771335212979,10.6097,84.874,84.83,12.61538281]
[1771335213280,14.31709942,84.875,84.831,15.10659186]
[1771335213484,14.31709942,84.875,84.832,10.615]
[1771335213686,14.31709942,84.875,84.831,15.10659186]
[1771335213879,14.31709942,84.875,84.84,2.00018281]
[1771335214273,14.31709942,84.889,84.84,17.10677467]
[1771335214879,14.31709942,84.889,84.849,10.6128]
[1771335215076,14.31709942,84.889,84.85,2.00018281]
[1771335215289,14.31709942,84.889,84.851,10.6125]
[1771335216576,10.6081,84.888,84.85,2.00018281]
[1771335216779,10.6081,84.888,84.844,10.6135]
[1771335218182,24.92519942,84.888,84.844,10.6135]
[1771335219890,10.6084,84.885,84.844,10.6135]
[1771335220489,14.31709942,84.887,84.851,10.6126]
[1771335224394,14.31709942,84.887,84.85,16.51072906]
[1771335224995,15.25558505,84.899,84.85,16.51072906]
[1771335225188,15.25558505,84.899,84.858,10.6117]
[1771335225593,15.25558505,84.899,84.859,14.51054625]
[1771335225789,164.7979,85.0,84.87,2.00018281]
[1771335225790,15.25558505,84.911,84.87,2.00018281]
[1771335226096,15.25558505,84.909,84.863,14.51054625]
[1771335226293,15.25558505,84.909,84.876,10.6094]
[1771335227387,15.25558505,84.907,84.867,10.6106]
[1771335229690,15.25558505,84.889,84.84,2.00018281]
[1771335229890,21.2024,84.943,84.84,2.00018281]
[1771335229891,15.25558505,84.879,84.84,2.00018281]
[1771335230501,15.25558505,84.879,84.846,10.6132]
[1771335230702,15.25558505,84.879,84.84,16.51072906]
[1771335231694,15.25558505,84.879,84.852,10.6124]
[1771335232703,14.90742426,84.897,84.852,10.6124]
[1771335233104,10.6073,84.894,84.852,10.6124]
[1771335233300,14.49921964,84.935,84.809,47.15]
[1771335233301,2.00018281,84.88,84.83,2.00018281]
[1771335233801,14.90742426,84.879,84.83,17.0137407]
[1771335234905,14.90742426,84.876,84.836,10.6145]
[1771335235202,14.90742426,84.876,84.843,10.6136]
[1771335236903,14.90742426,84.876,84.836,10.6145]
[1771335238811,25.51522426,84.89,84.848,10.6129]
[1771335239105,14.90742426,84.889,84.848,10.6129]
[1771335239909,14.90742426,84.889,84.848,25.62645789]
[1771335240208,14.90742426,84.889,84.85,17.0137407]
[1771335240910,14.90742426,84.898,84.85,17.0137407]
[1771335241310,2.00018281,84.9,84.85,17.0137407]
[1771335241311,14.90742426,84.896,84.858,10.6116]
[1771335242909,10.6073,84.894,84.858,10.6116]
[1771335243106,14.90742426,84.893,84.823,21.2322]
[1771335243308,14.90742426,84.889,84.846,10.6132]
[1771335243514,14.90742426,84.889,84.841,15.01355789]
[1771335244200,10.6066,84.9,84.857,25.62535789]
[1771335244409,21.204,84.937,84.861,15.01355789]
[1771335244410,16.90760707,84.91,84.861,15.01355789]
[1771335245006,16.90760707,84.91,84.879,10.609]
[1771335245315,14.90742426,84.91,84.879,10.609]
[1771335245611,88.69921964,84.951,84.853,90.62]
[1771335245612,14.90742426,84.889,84.853,10.6123]
[1771335246115,2.00018281,84.9,84.851,15.01355789]
[1771335246616,14.90742426,84.905,84.866,10.6106]
[1771335247206,2.00018281,84.9,84.866,10.6106]
[1771335248311,14.90742426,84.889,84.838,15.01355789]
[1771335248514,2.00018281,84.88,84.838,15.01355789]
[1771335248820,16.90760707,84.89,84.841,15.01355789]
[1771335249811,16.90760707,84.89,84.851,10.6125]
[1771335251016,14.90742426,84.886,84.843,10.6135]
[1771335253014,14.90742426,84.886,84.849,10.6128]
[1771335254818,10.608,84.888,84.85,15.19271629]
[1771335255218,10.608,84.888,84.852,10.6124]
[1771335255416,14.07389268,84.898,84.85,15.19271629]
[1771335256421,14.07389268,84.896,84.85,15.19271629]
[1771335256817,14.07389268,84.895,84.859,10.6116]
[1771335258822,14.07389268,84.886,84.847,10.613]
[1771335260219,24.68229268,84.886,84.847,10.613]
[1771335260421,14.07389268,84.885,84.847,10.613]
[1771335260812,14.07389268,84.883,84.847,10.613]
[1771335262120,14.07389268,84.883,84.847,25.80571629]
[1771335262520,14.07389268,84.883,84.853,10.6124]
[1771335262721,74.2,84.913,84.847,15.19271629]
[1771335262722,14.07389268,84.896,84.847,15.19271629]
[1771335263020,11.51656777,84.895,84.847,15.19271629]
[1771335263210,8.57069473,84.894,84.851,15.19271629]
[1771335263414,10.6068,84.898,84.851,15.19271629]
[1771335263624,8.57106464,84.897,84.851,15.19271629]
[1771335263819,16.07407549,84.92,84.861,15.19271629]
[1771335264024,14.07389268,84.918,84.861,15.19271629]
[1771335264322,74.2,84.926,84.861,15.19271629]
[1771335264323,2.00018281,84.91,84.861,15.19271629]
[1771335264524,8.56962836,84.909,84.861,15.19271629]
[1771335264723,8.56962836,84.908,84.861,15.19271629]
[1771335264920,8.56962836,84.907,84.861,15.19271629]
[1771335265119,2.00018281,84.91,84.861,15.19271629]
[1771335265320,8.56874755,84.909,84.861,15.19271629]
[1771335265520,8.56874755,84.908,84.861,15.19271629]
[1771335265721,2.00018281,84.91,84.872,10.61]
[1771335266025,8.56914194,84.909,84.872,10.61]
[1771335266228,8.56914194,84.908,84.872,10.61]
[1771335266428,2.00018281,84.91,84.872,10.61]
[1771335267727,26.67937549,84.91,84.872,10.61]
[1771335267927,14.07389268,84.909,84.872,10.61]
[1771335268427,14.07389268,84.909,84.861,15.19271629]
[1771335268428,14.07389268,84.909,84.878,10.6091]
[1771335268631,14.07389268,84.909,84.87,1.99816577]
[1771335269727,14.07389268,84.909,84.871,10.6101]
[1771335271633,14.07389268,84.909,84.877,10.6094]
[1771335273936,10.6044,84.917,84.879,10.609]
[1771335274123,24.67829268,84.917,84.879,10.609]
[1771335274323,10.6044,84.917,84.881,10.6088]
[1771335274631,10.6031,84.928,84.882,15.19271629]
[1771335274829,8.55120242,84.927,84.882,15.19271629]
[1771335275030,14.07389268,84.929,84.897,10.6068]
[1771335276131,14.07389268,84.929,84.893,15.19271629]
[1771335277830,14.07389268,84.929,84.895,10.6071]
[1771335278427,22.61670906,84.928,84.895,10.6071]
[1771335278632,22.61670906,84.928,84.845,21.75134248]
[1771335278633,14.07389268,84.919,84.882,10.6087]
[1771335278835,14.07389268,84.919,84.871,15.19271629]
[1771335279239,14.07389268,84.919,84.88,1.99816577]
[1771335280539,14.07389268,84.917,84.881,10.6088]
[1771335280834,14.07389268,84.917,84.88,17.19088206]
[1771335281240,1.99816577,84.93,84.888,15.19271629]
[1771335281540,14.07389268,84.931,84.89,17.19088206]
[1771335282140,14.07389268,84.929,84.896,10.6069]